[Event "Late-Titled-Tuesday-Blitz-March-19-2024"]
[Site "Chess.com"]
[Date "2024.03.19"]
[Round "3"]
[White "azikom"]
[Black "ashookk"]
[Result "0-1"]
[WhiteElo "2594"]
[BlackElo "2349"]
[TimeControl "180+1"]
[EndTime "14:28:29 PDT"]
[Termination "ashookk won on time"]

1. c4 {[%clk 0:02:59.1]} 1... Nf6 {[%clk 0:02:59.7]} 2. Nc3 {[%clk 0:02:58.8]}
2... g6 {[%clk 0:02:59.8]} 3. e4 {[%clk 0:02:59.3]} 3... d6 {[%clk 0:02:59.4]}
4. d4 {[%clk 0:02:59.7]} 4... Bg7 {[%clk 0:02:59.9]} 5. Bg5 {[%clk 0:03:00.3]}
5... c5 {[%clk 0:02:58.7]} 6. d5 {[%clk 0:03:00]} 6... b5 {[%clk 0:02:53.4]} 7.
cxb5 {[%clk 0:02:57.8]} 7... a6 {[%clk 0:02:54]} 8. a4 {[%clk 0:02:57.7]} 8...
O-O {[%clk 0:02:52]} 9. f3 {[%clk 0:02:57.3]} 9... axb5 {[%clk 0:02:49.4]} 10.
Bxb5 {[%clk 0:02:56.2]} 10... Ba6 {[%clk 0:02:48.5]} 11. Nge2 {[%clk 0:02:56.5]}
11... Qa5 {[%clk 0:02:49.2]} 12. O-O {[%clk 0:02:55]} 12... Nbd7 {[%clk
0:02:43.2]} 13. Bd2 {[%clk 0:02:54.3]} 13... Ne5 {[%clk 0:02:40.3]} 14. b3
{[%clk 0:02:47.4]} 14... c4 {[%clk 0:02:24.3]} 15. Bxa6 {[%clk 0:02:37.5]} 15...
Rxa6 {[%clk 0:02:18.1]} 16. Nb5 {[%clk 0:02:32.4]} 16... Qb6+ {[%clk 0:02:17.5]}
17. Kh1 {[%clk 0:02:31.8]} 17... Nd3 {[%clk 0:02:05.2]} 18. bxc4 {[%clk
0:01:34.4]} 18... Nf2+ {[%clk 0:02:03.9]} 19. Rxf2 {[%clk 0:01:34.4]} 19... Qxf2
{[%clk 0:02:04.8]} 20. Bc3 {[%clk 0:00:56]} 20... Rc8 {[%clk 0:01:38.3]} 21. Bd4
{[%clk 0:00:53.5]} 21... Qh4 {[%clk 0:01:31.7]} 22. Qb3 {[%clk 0:00:46.1]} 22...
Nd7 {[%clk 0:00:57.4]} 23. Bxg7 {[%clk 0:00:45.3]} 23... Kxg7 {[%clk 0:00:58.3]}
24. h3 {[%clk 0:00:43.7]} 24... Nc5 {[%clk 0:00:54.2]} 25. Qb2+ {[%clk
0:00:35.7]} 25... Qf6 {[%clk 0:00:53.5]} 26. Qxf6+ {[%clk 0:00:19.6]} 26... Kxf6
{[%clk 0:00:54.4]} 27. Nec3 {[%clk 0:00:15.9]} 27... h5 {[%clk 0:00:34.6]} 28.
Nd4 {[%clk 0:00:14.3]} 28... Rca8 {[%clk 0:00:26.9]} 29. Nc6 {[%clk 0:00:13.4]}
29... Nxa4 {[%clk 0:00:24.5]} 30. Nb5 {[%clk 0:00:13.3]} 30... Nc5 {[%clk
0:00:23.1]} 31. Rc1 {[%clk 0:00:04.4]} 31... Ra1 {[%clk 0:00:22.7]} 32. Rxa1
{[%clk 0:00:04.2]} 32... Rxa1+ {[%clk 0:00:23.6]} 33. Kh2 {[%clk 0:00:04.8]}
33... Rc1 {[%clk 0:00:24.5]} 34. Na5 {[%clk 0:00:03.3]} 34... h4 {[%clk
0:00:24.2]} 35. Nc7 {[%clk 0:00:01.9]} 35... Kg5 {[%clk 0:00:20.7]} 36. Ne8
{[%clk 0:00:01.8]} 36... Nd3 {[%clk 0:00:20.3]} 37. Nc6 {[%clk 0:00:01.6]} 37...
Nf4 {[%clk 0:00:18.5]} 38. Nxe7 {[%clk 0:00:01.3]} 38... Rc2 {[%clk 0:00:19]}
39. Kg1 {[%clk 0:00:01.8]} 39... Rxg2+ {[%clk 0:00:18.8]} 40. Kf1 {[%clk
0:00:01.1]} 40... Rc2 {[%clk 0:00:18.6]} 0-1

[Event "Late-Titled-Tuesday-Blitz-March-19-2024"]
[Site "Chess.com"]
[Date "2024.03.19"]
[Round "3"]
[White "Blitzstream"]
[Black "Muracle"]
[Result "0-1"]
[WhiteElo "2830"]
[BlackElo "2603"]
[TimeControl "180+1"]
[EndTime "14:28:30 PDT"]
[Termination "Muracle won by checkmate"]

1. e4 {[%clk 0:03:00.9]} 1... c6 {[%clk 0:03:00.2]} 2. c4 {[%clk 0:03:00.5]}
2... d5 {[%clk 0:03:01.1]} 3. exd5 {[%clk 0:03:00.5]} 3... cxd5 {[%clk 0:03:02]}
4. cxd5 {[%clk 0:03:01]} 4... Nf6 {[%clk 0:03:02.6]} 5. Nc3 {[%clk 0:03:01.3]}
5... Nxd5 {[%clk 0:02:56.8]} 6. Nf3 {[%clk 0:03:01.6]} 6... g6 {[%clk
0:02:56.1]} 7. Bc4 {[%clk 0:03:01.5]} 7... Nb6 {[%clk 0:02:56.3]} 8. Bb3 {[%clk
0:03:01.9]} 8... Bg7 {[%clk 0:02:56.6]} 9. O-O {[%clk 0:03:02.1]} 9... Nc6
{[%clk 0:02:56.1]} 10. d4 {[%clk 0:02:53.6]} 10... O-O {[%clk 0:02:54.2]} 11. d5
{[%clk 0:02:52.3]} 11... Na5 {[%clk 0:02:54.5]} 12. Bg5 {[%clk 0:02:52.4]} 12...
Re8 {[%clk 0:02:53.5]} 13. Re1 {[%clk 0:02:49.4]} 13... Bg4 {[%clk 0:02:47.6]}
14. d6 {[%clk 0:02:33.8]} 14... Qxd6 {[%clk 0:02:43.7]} 15. Bxf7+ {[%clk
0:02:32.1]} 15... Kxf7 {[%clk 0:02:42.5]} 16. Rxe7+ {[%clk 0:02:32.1]} 16...
Qxe7 {[%clk 0:02:37.4]} 17. Bxe7 {[%clk 0:02:31.4]} 17... Kxe7 {[%clk
0:02:35.2]} 18. Nb5 {[%clk 0:02:05.1]} 18... Nac4 {[%clk 0:02:04.3]} 19. h3
{[%clk 0:01:57.7]} 19... Rad8 {[%clk 0:02:00.1]} 20. Qb3 {[%clk 0:01:49.8]}
20... Bf5 {[%clk 0:01:24.7]} 21. Nxa7 {[%clk 0:01:44.6]} 21... Kf8 {[%clk
0:01:17.7]} 22. a4 {[%clk 0:01:43.1]} 22... Rd3 {[%clk 0:00:33.8]} 23. Qb4+
{[%clk 0:01:41.5]} 23... Kg8 {[%clk 0:00:34.4]} 24. a5 {[%clk 0:01:39.5]} 24...
Bf8 {[%clk 0:00:34.8]} 25. Qb5 {[%clk 0:01:38.6]} 25... Bd7 {[%clk 0:00:28.1]}
26. Qg5 {[%clk 0:01:34.9]} 26... Nd5 {[%clk 0:00:19.8]} 27. b3 {[%clk
0:01:31.7]} 27... Nd6 {[%clk 0:00:17.3]} 28. Ne5 {[%clk 0:01:07.5]} 28... Ne4
{[%clk 0:00:15]} 29. Qh4 {[%clk 0:00:45.1]} 29... Rxe5 {[%clk 0:00:15.1]} 30.
Qd8 {[%clk 0:00:44.1]} 30... Ndf6 {[%clk 0:00:11.2]} 31. Qb8 {[%clk 0:00:42.9]}
31... Re8 {[%clk 0:00:10.2]} 32. Qxb7 {[%clk 0:00:43]} 32... Bc5 {[%clk
0:00:10.5]} 33. Nc6 {[%clk 0:00:35.8]} 33... Bxf2+ {[%clk 0:00:10.4]} 34. Kh1
{[%clk 0:00:36.2]} 34... Re6 {[%clk 0:00:05.6]} 35. Qb8+ {[%clk 0:00:29.5]}
35... Kg7 {[%clk 0:00:04.8]} 36. Ne5 {[%clk 0:00:27.8]} 36... Bg3 {[%clk
0:00:03.1]} 37. a6 {[%clk 0:00:19.6]} 37... Bxe5 {[%clk 0:00:03.5]} 38. Qb7
{[%clk 0:00:19.8]} 38... Red6 {[%clk 0:00:01.5]} 39. g4 {[%clk 0:00:11]} 39...
Ng3+ {[%clk 0:00:02.4]} 40. Kg2 {[%clk 0:00:11.1]} 40... Rd2+ {[%clk 0:00:02.9]}
41. Kg1 {[%clk 0:00:09.8]} 41... Bd4# {[%clk 0:00:02.9]} 0-1

[Event "Late-Titled-Tuesday-Blitz-March-19-2024"]
[Site "Chess.com"]
[Date "2024.03.19"]
[Round "3"]
[White "zverr1"]
[Black "David_ATM"]
[Result "0-1"]
[WhiteElo "2542"]
[BlackElo "2331"]
[TimeControl "180+1"]
[EndTime "14:28:30 PDT"]
[Termination "David_ATM won by checkmate"]

1. d4 {[%clk 0:03:00.9]} 1... d5 {[%clk 0:03:00]} 2. c4 {[%clk 0:03:00.5]} 2...
c6 {[%clk 0:03:00.9]} 3. e3 {[%clk 0:02:59.3]} 3... Nf6 {[%clk 0:03:00.9]} 4.
Nf3 {[%clk 0:02:59.3]} 4... Bf5 {[%clk 0:03:01]} 5. Nc3 {[%clk 0:02:55.6]} 5...
e6 {[%clk 0:03:00.9]} 6. Nh4 {[%clk 0:02:54.9]} 6... Be4 {[%clk 0:03:01]} 7. f3
{[%clk 0:02:44.8]} 7... Bg6 {[%clk 0:02:59]} 8. g3 {[%clk 0:02:42.1]} 8... Nbd7
{[%clk 0:02:56.5]} 9. cxd5 {[%clk 0:02:39.3]} 9... exd5 {[%clk 0:02:56.4]} 10.
Bg2 {[%clk 0:02:32.2]} 10... Be7 {[%clk 0:02:50.2]} 11. O-O {[%clk 0:02:31.7]}
11... O-O {[%clk 0:02:38.6]} 12. Nxg6 {[%clk 0:02:30.5]} 12... hxg6 {[%clk
0:02:39.5]} 13. e4 {[%clk 0:02:27]} 13... Nb6 {[%clk 0:02:20.1]} 14. e5 {[%clk
0:02:13.9]} 14... Ne8 {[%clk 0:02:12.3]} 15. f4 {[%clk 0:02:12.3]} 15... Nc7
{[%clk 0:02:12.3]} 16. b3 {[%clk 0:02:05.6]} 16... a5 {[%clk 0:02:08.9]} 17. Be3
{[%clk 0:02:02.3]} 17... a4 {[%clk 0:02:04.1]} 18. h4 {[%clk 0:01:50.8]} 18...
Qd7 {[%clk 0:01:34.8]} 19. h5 {[%clk 0:01:44.4]} 19... axb3 {[%clk 0:01:31]} 20.
hxg6 {[%clk 0:01:43.6]} 20... b2 {[%clk 0:01:07.7]} 21. gxf7+ {[%clk 0:01:39.9]}
21... Rxf7 {[%clk 0:01:08.6]} 22. Rb1 {[%clk 0:01:40.5]} 22... Nc4 {[%clk
0:01:09]} 23. Qd3 {[%clk 0:01:33.5]} 23... Qf5 {[%clk 0:01:05.8]} 24. Qxf5
{[%clk 0:01:30.2]} 24... Rxf5 {[%clk 0:01:06.7]} 25. Nd1 {[%clk 0:01:28.1]}
25... Rxa2 {[%clk 0:01:03.5]} 26. Bh3 {[%clk 0:00:56]} 26... Rf8 {[%clk
0:01:03.7]} 27. Nc3 {[%clk 0:00:46.6]} 27... Ra3 {[%clk 0:00:52.7]} 28. Nd1
{[%clk 0:00:45.2]} 28... Nxe3 {[%clk 0:00:35.9]} 29. Nxe3 {[%clk 0:00:46.1]}
29... Rxe3 {[%clk 0:00:36.6]} 30. Rxb2 {[%clk 0:00:45.4]} 30... Nb5 {[%clk
0:00:36.1]} 31. Kf2 {[%clk 0:00:37.6]} 31... Rd3 {[%clk 0:00:24.7]} 32. Be6+
{[%clk 0:00:33]} 32... Kh7 {[%clk 0:00:25.2]} 33. f5 {[%clk 0:00:16.8]} 33... g6
{[%clk 0:00:21.6]} 34. Rh1+ {[%clk 0:00:15.5]} 34... Kg7 {[%clk 0:00:22]} 35.
f6+ {[%clk 0:00:16.2]} 35... Bxf6 {[%clk 0:00:22.6]} 36. exf6+ {[%clk
0:00:17.1]} 36... Rxf6+ {[%clk 0:00:23.2]} 37. Ke2 {[%clk 0:00:18]} 37... Rxg3
{[%clk 0:00:18.2]} 38. Bh3 {[%clk 0:00:15.8]} 38... Nxd4+ {[%clk 0:00:18.5]} 39.
Kd1 {[%clk 0:00:15.1]} 39... b5 {[%clk 0:00:15.7]} 40. Rd2 {[%clk 0:00:15.6]}
40... c5 {[%clk 0:00:15.4]} 41. Bd7 {[%clk 0:00:15.5]} 41... b4 {[%clk
0:00:15.3]} 42. Ba4 {[%clk 0:00:14.4]} 42... Ra3 {[%clk 0:00:14.8]} 43. Bc2
{[%clk 0:00:13.5]} 43... Ra1+ {[%clk 0:00:14.9]} 44. Bb1 {[%clk 0:00:12.9]}
44... Rxb1# {[%clk 0:00:15.8]} 0-1

[Event "Late-Titled-Tuesday-Blitz-March-19-2024"]
[Site "Chess.com"]
[Date "2024.03.19"]
[Round "3"]
[White "stollenmonster"]
[Black "PolandHussars"]
[Result "1-0"]
[WhiteElo "2892"]
[BlackElo "2549"]
[TimeControl "180+1"]
[EndTime "14:28:31 PDT"]
[Termination "stollenmonster won on time"]

1. e4 {[%clk 0:03:00.9]} 1... e5 {[%clk 0:02:53.5]} 2. Nc3 {[%clk 0:03:00.6]}
2... Nf6 {[%clk 0:02:53.1]} 3. g3 {[%clk 0:03:01.1]} 3... d5 {[%clk 0:02:53.1]}
4. exd5 {[%clk 0:03:02]} 4... Nxd5 {[%clk 0:02:53.4]} 5. Bg2 {[%clk 0:03:02.5]}
5... Nxc3 {[%clk 0:02:53.5]} 6. bxc3 {[%clk 0:03:03.3]} 6... Bd6 {[%clk
0:02:53.1]} 7. d3 {[%clk 0:03:03.3]} 7... O-O {[%clk 0:02:53.2]} 8. Ne2 {[%clk
0:03:03.6]} 8... c6 {[%clk 0:02:53.6]} 9. O-O {[%clk 0:03:04]} 9... Nd7 {[%clk
0:02:54.1]} 10. h3 {[%clk 0:03:04.6]} 10... Nf6 {[%clk 0:02:54.1]} 11. g4 {[%clk
0:03:02.2]} 11... h6 {[%clk 0:02:54]} 12. Ng3 {[%clk 0:03:01.4]} 12... Re8
{[%clk 0:02:54]} 13. c4 {[%clk 0:03:01.3]} 13... Rb8 {[%clk 0:02:51.3]} 14. Rb1
{[%clk 0:02:59.6]} 14... Be6 {[%clk 0:02:46.7]} 15. Be3 {[%clk 0:02:58.2]} 15...
Qe7 {[%clk 0:02:35]} 16. Qd2 {[%clk 0:02:56.4]} 16... Bc5 {[%clk 0:02:31.1]} 17.
Rfe1 {[%clk 0:02:52.8]} 17... Nd7 {[%clk 0:02:24.1]} 18. Kh2 {[%clk 0:02:44.6]}
18... Bxe3 {[%clk 0:02:19.5]} 19. Qxe3 {[%clk 0:02:43.4]} 19... a6 {[%clk
0:02:17.9]} 20. a4 {[%clk 0:02:37.5]} 20... f6 {[%clk 0:02:08]} 21. Ne4 {[%clk
0:02:06.8]} 21... Nf8 {[%clk 0:01:51.5]} 22. f4 {[%clk 0:01:47.5]} 22... Bf7
{[%clk 0:01:41.9]} 23. f5 {[%clk 0:01:46.4]} 23... Red8 {[%clk 0:01:35.1]} 24.
a5 {[%clk 0:01:40.9]} 24... Rd4 {[%clk 0:01:29.7]} 25. h4 {[%clk 0:01:37.4]}
25... Nh7 {[%clk 0:01:21.7]} 26. Rg1 {[%clk 0:01:30.5]} 26... Kh8 {[%clk
0:01:19.9]} 27. Bf3 {[%clk 0:01:29.6]} 27... g5 {[%clk 0:01:06.1]} 28. fxg6
{[%clk 0:01:23.1]} 28... Bxg6 {[%clk 0:01:06.1]} 29. Qxh6 {[%clk 0:01:23.3]}
29... Rg8 {[%clk 0:01:00.6]} 30. Rbf1 {[%clk 0:01:17.2]} 30... Be8 {[%clk
0:00:42.9]} 31. Bg2 {[%clk 0:00:48.7]} 31... Rg6 {[%clk 0:00:39]} 32. Qe3 {[%clk
0:00:48.4]} 32... f5 {[%clk 0:00:38.8]} 33. gxf5 {[%clk 0:00:45]} 33... Qxh4+
{[%clk 0:00:39]} 34. Bh3 {[%clk 0:00:45.7]} 34... Rh6 {[%clk 0:00:32.7]} 35. Rg3
{[%clk 0:00:34.1]} 35... Bf7 {[%clk 0:00:26.3]} 36. Rfg1 {[%clk 0:00:33.8]}
36... Nf6 {[%clk 0:00:18]} 37. Ng5 {[%clk 0:00:21.8]} 37... Bg8 {[%clk
0:00:15.3]} 38. Qxe5 {[%clk 0:00:20.1]} 38... Rf4 {[%clk 0:00:08.5]} 39. R1g2
{[%clk 0:00:18.4]} 39... Rf1 {[%clk 0:00:04.5]} 40. Ne4 {[%clk 0:00:17.3]} 40...
Rh1+ {[%clk 0:00:04.5]} 41. Kxh1 {[%clk 0:00:16.9]} 41... Qxh3+ {[%clk 0:00:05]}
42. Rxh3 {[%clk 0:00:16.9]} 42... Rxh3+ {[%clk 0:00:05.9]} 43. Kg1 {[%clk
0:00:17.4]} 1-0

[Event "Late-Titled-Tuesday-Blitz-March-19-2024"]
[Site "Chess.com"]
[Date "2024.03.19"]
[Round "3"]
[White "Iuckyducky"]
[Black "Truequitos"]
[Result "0-1"]
[WhiteElo "2302"]
[BlackElo "2548"]
[TimeControl "180+1"]
[EndTime "14:28:33 PDT"]
[Termination "Truequitos won by resignation"]

1. e4 {[%clk 0:03:00.9]} 1... e6 {[%clk 0:03:00]} 2. d4 {[%clk 0:03:00.9]} 2...
d5 {[%clk 0:03:00.2]} 3. Nc3 {[%clk 0:03:01.4]} 3... h6 {[%clk 0:03:00.1]} 4.
Nf3 {[%clk 0:02:57.9]} 4... Nf6 {[%clk 0:03:00.4]} 5. exd5 {[%clk 0:02:56.8]}
5... exd5 {[%clk 0:02:59.9]} 6. Bd3 {[%clk 0:02:57.3]} 6... Bb4 {[%clk
0:02:58.6]} 7. h3 {[%clk 0:02:57.1]} 7... O-O {[%clk 0:02:57.9]} 8. Be3 {[%clk
0:02:57.2]} 8... Re8 {[%clk 0:02:57.6]} 9. Qd2 {[%clk 0:02:57.4]} 9... Ne4
{[%clk 0:02:56.3]} 10. Bxe4 {[%clk 0:02:55.5]} 10... dxe4 {[%clk 0:02:56.3]} 11.
Ne5 {[%clk 0:02:55.4]} 11... f6 {[%clk 0:02:47.9]} 12. Ng6 {[%clk 0:02:50.8]}
12... Bf5 {[%clk 0:02:41.8]} 13. Nf4 {[%clk 0:02:39.5]} 13... c5 {[%clk
0:02:39.1]} 14. O-O-O {[%clk 0:02:28.2]} 14... cxd4 {[%clk 0:02:35.8]} 15. Bxd4
{[%clk 0:02:29.1]} 15... Nc6 {[%clk 0:02:34.2]} 16. Nfd5 {[%clk 0:02:14.9]}
16... Qxd5 {[%clk 0:02:25.3]} 17. Nxd5 {[%clk 0:02:14.2]} 17... Bxd2+ {[%clk
0:02:25.9]} 18. Rxd2 {[%clk 0:02:14.7]} 18... Red8 {[%clk 0:01:51.2]} 19. c4
{[%clk 0:02:12.7]} 19... b5 {[%clk 0:01:40.9]} 20. cxb5 {[%clk 0:02:05.1]} 20...
Rxd5 {[%clk 0:01:00.2]} 21. bxc6 {[%clk 0:02:04.7]} 21... Rc8 {[%clk 0:00:55.6]}
22. Bc3 {[%clk 0:01:50]} 22... Rxd2 {[%clk 0:00:51.6]} 23. Kxd2 {[%clk
0:01:50.9]} 23... Rxc6 {[%clk 0:00:51.8]} 24. Ke3 {[%clk 0:01:51.5]} 24... Kf7
{[%clk 0:00:49.6]} 25. Rd1 {[%clk 0:01:51.8]} 25... Ke7 {[%clk 0:00:47]} 26. a3
{[%clk 0:01:43.9]} 26... g5 {[%clk 0:00:44.7]} 27. Rd5 {[%clk 0:01:38]} 27...
Bg6 {[%clk 0:00:44.4]} 28. Ra5 {[%clk 0:01:36.3]} 28... a6 {[%clk 0:00:44.7]}
29. Rd5 {[%clk 0:01:33.1]} 29... f5 {[%clk 0:00:43.9]} 30. Bb4+ {[%clk
0:01:30.6]} 30... Ke6 {[%clk 0:00:43.6]} 31. Rd2 {[%clk 0:01:28.8]} 31... f4+
{[%clk 0:00:43]} 32. Ke2 {[%clk 0:01:26.7]} 32... Rc1 {[%clk 0:00:40.1]} 33.
Rd6+ {[%clk 0:01:25.1]} 33... Kf5 {[%clk 0:00:40]} 34. Bc3 {[%clk 0:01:20.2]}
34... Bh5+ {[%clk 0:00:37.6]} 35. f3 {[%clk 0:01:16.6]} 35... exf3+ {[%clk
0:00:34.8]} 36. gxf3 {[%clk 0:01:17.5]} 36... Rc2+ {[%clk 0:00:11.3]} 37. Kd1
{[%clk 0:01:12.9]} 37... Rxc3 {[%clk 0:00:10.1]} 38. bxc3 {[%clk 0:01:12.9]}
38... Bxf3+ {[%clk 0:00:10.4]} 39. Kd2 {[%clk 0:01:10.6]} 39... h5 {[%clk
0:00:10.4]} 40. Rxa6 {[%clk 0:01:10.5]} 40... g4 {[%clk 0:00:08.8]} 41. hxg4+
{[%clk 0:01:10.7]} 41... hxg4 {[%clk 0:00:08.5]} 42. Ke1 {[%clk 0:01:02.7]}
42... Ke4 {[%clk 0:00:07.7]} 43. Rd6 {[%clk 0:01:01.2]} 43... Ke3 {[%clk
0:00:06.6]} 44. a4 {[%clk 0:00:58.9]} 44... Be4 {[%clk 0:00:03.8]} 45. a5 {[%clk
0:00:50.4]} 45... f3 {[%clk 0:00:04]} 46. Re6 {[%clk 0:00:44.1]} 46... g3 {[%clk
0:00:03.9]} 47. Rxe4+ {[%clk 0:00:25.4]} 47... Kxe4 {[%clk 0:00:04.8]} 48. a6
{[%clk 0:00:25.3]} 48... Ke3 {[%clk 0:00:05.3]} 49. a7 {[%clk 0:00:23.2]} 49...
g2 {[%clk 0:00:05.4]} 0-1

[Event "Late-Titled-Tuesday-Blitz-March-19-2024"]
[Site "Chess.com"]
[Date "2024.03.19"]
[Round "3"]
[White "AryanTari"]
[Black "joksijoksi"]
[Result "1-0"]
[WhiteElo "3011"]
[BlackElo "2570"]
[TimeControl "180+1"]
[EndTime "14:28:34 PDT"]
[Termination "AryanTari won by resignation"]

1. Nf3 {[%clk 0:02:38.1]} 1... d5 {[%clk 0:02:59]} 2. Nc3 {[%clk 0:02:34.4]}
2... Nf6 {[%clk 0:02:52.2]} 3. g3 {[%clk 0:02:32.9]} 3... c5 {[%clk 0:02:50.4]}
4. Bg2 {[%clk 0:02:32.2]} 4... Nc6 {[%clk 0:02:51]} 5. d3 {[%clk 0:02:30.1]}
5... g6 {[%clk 0:02:50.8]} 6. O-O {[%clk 0:02:23.9]} 6... Bg7 {[%clk 0:02:50.9]}
7. a3 {[%clk 0:02:24.5]} 7... O-O {[%clk 0:02:50.4]} 8. Rb1 {[%clk 0:02:25.1]}
8... Bf5 {[%clk 0:02:44.5]} 9. b4 {[%clk 0:02:23.8]} 9... cxb4 {[%clk
0:02:43.8]} 10. axb4 {[%clk 0:02:24.7]} 10... a6 {[%clk 0:02:44.2]} 11. Bd2
{[%clk 0:02:20.7]} 11... e5 {[%clk 0:02:38.5]} 12. b5 {[%clk 0:01:55.5]} 12...
axb5 {[%clk 0:02:36.1]} 13. Nxb5 {[%clk 0:01:56.4]} 13... d4 {[%clk 0:02:23.7]}
14. e3 {[%clk 0:01:39.5]} 14... dxe3 {[%clk 0:02:18.2]} 15. Bxe3 {[%clk
0:01:39.6]} 15... Nd5 {[%clk 0:02:14.5]} 16. Bc5 {[%clk 0:01:39.3]} 16... Re8
{[%clk 0:02:11]} 17. c4 {[%clk 0:01:36.8]} 17... Nde7 {[%clk 0:01:51.2]} 18. Nd6
{[%clk 0:01:36.6]} 18... Rf8 {[%clk 0:01:51.7]} 19. Rxb7 {[%clk 0:01:30.3]}
19... Ra5 {[%clk 0:01:39.6]} 20. Nxf5 {[%clk 0:01:16.5]} 20... Rxc5 {[%clk
0:01:38.8]} 21. Nxe7+ {[%clk 0:01:15]} 21... Nxe7 {[%clk 0:01:39.7]} 22. Ng5
{[%clk 0:01:14.5]} 22... Nf5 {[%clk 0:01:29.8]} 23. Ne4 {[%clk 0:01:02.9]} 23...
Rc7 {[%clk 0:01:29.9]} 24. Rxc7 {[%clk 0:00:59]} 24... Qxc7 {[%clk 0:01:30.8]}
25. Nc3 {[%clk 0:00:48.1]} 25... Nd4 {[%clk 0:01:23]} 26. Qa4 {[%clk 0:00:44.5]}
26... Qd6 {[%clk 0:01:17.7]} 27. Nd5 {[%clk 0:00:44]} 27... h5 {[%clk
0:01:06.8]} 28. Rb1 {[%clk 0:00:40.8]} 28... h4 {[%clk 0:01:04.3]} 29. Rb6
{[%clk 0:00:37.6]} 29... Qc5 {[%clk 0:01:02.8]} 30. Qb4 {[%clk 0:00:35]} 30...
Qxb4 {[%clk 0:00:53.2]} 31. Nxb4 {[%clk 0:00:35.9]} 31... hxg3 {[%clk
0:00:44.8]} 32. hxg3 {[%clk 0:00:36.1]} 32... Rd8 {[%clk 0:00:35]} 33. Bd5
{[%clk 0:00:36]} 33... Bf8 {[%clk 0:00:34.7]} 34. Rxg6+ {[%clk 0:00:31.3]} 34...
Kh7 {[%clk 0:00:35.2]} 35. Rb6 {[%clk 0:00:31.6]} 35... f5 {[%clk 0:00:29.2]}
36. Kg2 {[%clk 0:00:29.7]} 36... Bc5 {[%clk 0:00:23.2]} 37. Rb7+ {[%clk
0:00:30.1]} 37... Kg6 {[%clk 0:00:23.3]} 38. Na6 {[%clk 0:00:29.5]} 38... Bd6
{[%clk 0:00:20.9]} 39. c5 {[%clk 0:00:28.1]} 39... Be7 {[%clk 0:00:19.5]} 40.
Rxe7 {[%clk 0:00:25.6]} 40... Rxd5 {[%clk 0:00:20]} 41. c6 {[%clk 0:00:25.8]}
41... Nxc6 {[%clk 0:00:19.9]} 42. Re6+ {[%clk 0:00:26.3]} 42... Kg5 {[%clk
0:00:20.4]} 43. Rxc6 {[%clk 0:00:26.1]} 43... Rxd3 {[%clk 0:00:20.7]} 44. Nc5
{[%clk 0:00:26.8]} 44... Rd2 {[%clk 0:00:19.9]} 45. Ne6+ {[%clk 0:00:26.4]}
45... Kh5 {[%clk 0:00:19.4]} 46. Kf3 {[%clk 0:00:24.5]} 46... Rd3+ {[%clk
0:00:18.3]} 47. Ke2 {[%clk 0:00:24.7]} 47... Ra3 {[%clk 0:00:18.9]} 48. Rc5
{[%clk 0:00:25.2]} 48... Ra2+ {[%clk 0:00:19.4]} 49. Kf1 {[%clk 0:00:25.5]}
49... Ra1+ {[%clk 0:00:19.5]} 50. Kg2 {[%clk 0:00:25.7]} 50... Re1 {[%clk
0:00:20]} 51. Nf4+ {[%clk 0:00:22.5]} 51... Kg5 {[%clk 0:00:15.9]} 52. Nd3
{[%clk 0:00:22.5]} 52... Rd1 {[%clk 0:00:14.1]} 53. Nxe5 {[%clk 0:00:22.6]} 1-0

[Event "Late-Titled-Tuesday-Blitz-March-19-2024"]
[Site "Chess.com"]
[Date "2024.03.19"]
[Round "3"]
[White "Mackster23"]
[Black "ckgchess"]
[Result "0-1"]
[WhiteElo "2559"]
[BlackElo "2933"]
[TimeControl "180+1"]
[EndTime "14:28:34 PDT"]
[Termination "ckgchess won on time"]

1. e4 {[%clk 0:03:00.9]} 1... c5 {[%clk 0:03:00.3]} 2. Nf3 {[%clk 0:03:00.9]}
2... d6 {[%clk 0:03:00.8]} 3. d4 {[%clk 0:03:01.1]} 3... cxd4 {[%clk 0:03:01.7]}
4. Nxd4 {[%clk 0:03:01]} 4... Nf6 {[%clk 0:03:02.3]} 5. Nc3 {[%clk 0:03:01.7]}
5... e5 {[%clk 0:03:02.4]} 6. Bb5+ {[%clk 0:03:00.8]} 6... Nbd7 {[%clk
0:03:02.5]} 7. Nf5 {[%clk 0:02:56.4]} 7... a6 {[%clk 0:03:02.6]} 8. Be2 {[%clk
0:02:36.7]} 8... Nc5 {[%clk 0:02:54.7]} 9. Ng3 {[%clk 0:02:36.5]} 9... h6 {[%clk
0:02:48.2]} 10. a4 {[%clk 0:02:32]} 10... Be7 {[%clk 0:02:47.7]} 11. a5 {[%clk
0:02:27.1]} 11... O-O {[%clk 0:02:46.9]} 12. Be3 {[%clk 0:02:20.4]} 12... Be6
{[%clk 0:02:44.8]} 13. b4 {[%clk 0:02:15.1]} 13... Ncd7 {[%clk 0:02:42]} 14. Nd5
{[%clk 0:02:11.1]} 14... Bxd5 {[%clk 0:02:27.3]} 15. exd5 {[%clk 0:02:12]} 15...
Ne8 {[%clk 0:02:26.5]} 16. Nf5 {[%clk 0:02:09.9]} 16... Bg5 {[%clk 0:02:24.6]}
17. Qd2 {[%clk 0:01:50.2]} 17... Bxe3 {[%clk 0:02:20.8]} 18. Qxe3 {[%clk
0:01:49.5]} 18... Qf6 {[%clk 0:01:43.2]} 19. Ng3 {[%clk 0:01:49]} 19... Qh4
{[%clk 0:01:39.2]} 20. Nf5 {[%clk 0:01:26.7]} 20... Qxb4+ {[%clk 0:01:39]} 21.
Qd2 {[%clk 0:01:21.6]} 21... Qe4 {[%clk 0:01:20.8]} 22. Ng3 {[%clk 0:01:00.3]}
22... Qg6 {[%clk 0:01:10.1]} 23. Rb1 {[%clk 0:00:48.1]} 23... Nc5 {[%clk
0:01:08.3]} 24. O-O {[%clk 0:00:46.9]} 24... f5 {[%clk 0:01:08.3]} 25. f4 {[%clk
0:00:46.9]} 25... e4 {[%clk 0:01:04.8]} 26. Rb6 {[%clk 0:00:43.8]} 26... Qf7
{[%clk 0:00:55.6]} 27. Rfb1 {[%clk 0:00:38.8]} 27... Qc7 {[%clk 0:00:48.5]} 28.
Qd4 {[%clk 0:00:23.2]} 28... g6 {[%clk 0:00:43.2]} 29. Nf1 {[%clk 0:00:23]}
29... Qg7 {[%clk 0:00:38.3]} 30. Qd2 {[%clk 0:00:19.7]} 30... Rc8 {[%clk
0:00:38.4]} 31. Ne3 {[%clk 0:00:19.8]} 31... Rc7 {[%clk 0:00:32.5]} 32. g3
{[%clk 0:00:20.1]} 32... Rf6 {[%clk 0:00:32.2]} 33. Kg2 {[%clk 0:00:20.4]} 33...
g5 {[%clk 0:00:31.6]} 34. Rf1 {[%clk 0:00:18.3]} 34... Nd7 {[%clk 0:00:27.3]}
35. fxg5 {[%clk 0:00:14]} 35... Qxg5 {[%clk 0:00:26.4]} 36. h4 {[%clk
0:00:12.3]} 36... Qg6 {[%clk 0:00:25.7]} 37. Rb4 {[%clk 0:00:06.1]} 37... f4
{[%clk 0:00:25.8]} 38. Ng4 {[%clk 0:00:05.2]} 38... f3+ {[%clk 0:00:26.1]} 39.
Kh2 {[%clk 0:00:04]} 39... Qxg4 {[%clk 0:00:25.3]} 40. Bd3 {[%clk 0:00:03.2]}
40... Nc5 {[%clk 0:00:20.9]} 41. Qc3 {[%clk 0:00:02.3]} 41... Nxd3 {[%clk
0:00:15.9]} 42. Qxd3 {[%clk 0:00:02.5]} 42... Rg6 {[%clk 0:00:12.4]} 0-1